bitfinex-derivatives/quotes_BTCF0:USTF0_20210705
["timestamp","ask_amount","ask_price","bid_price","bid_amount"]
[1625521558498,0.35657544,34101.0,34100.0,0.24057544]
[1625521559500,0.35657544,34101.0,34100.0,0.29957544]
[1625521566565,0.35657544,34101.0,34100.0,0.24057544]
[1625521567972,0.68202544,34101.0,34100.0,0.24057544]
[1625521569621,0.35657544,34101.0,34100.0,0.24057544]
[1625521570424,0.35657544,34101.0,34100.0,0.62347544]
[1625521570876,0.29757544,34101.0,34100.0,0.62347544]
[1625521571877,0.35657544,34101.0,34100.0,0.62347544]
[1625521573280,0.29957544,34101.0,34100.0,0.62347544]
[1625521574630,0.059,34101.0,34100.0,0.62347544]
[1625521575936,0.24057544,34104.0,34100.0,0.62347544]
[1625521576036,0.29957544,34104.0,34100.0,0.62347544]
[1625521576338,0.29957544,34104.0,34103.0,0.24057544]
[1625521576437,0.29957544,34104.0,34103.0,0.29957544]
[1625521578092,0.29957544,34104.0,34103.0,0.30305063]
[1625521579748,0.059,34104.0,34103.0,0.30305063]
[1625521580399,0.059,34104.0,34103.0,0.54362607]
[1625521581504,0.057,34107.0,34103.0,0.54362607]
[1625521582056,0.057,34107.0,34104.0,0.00347497]
[1625521582256,0.057,34107.0,34104.0,0.06247497]
[1625521582456,0.057,34107.0,34106.0,0.24057544]
[1625521582556,0.057,34107.0,34106.0,4.39567544]
[1625521582858,0.057,34107.0,34106.0,4.39915032]
[1625521582957,0.057,34107.0,34106.0,4.45815032]
[1625521588271,0.24057544,34108.0,34106.0,4.45815032]
[1625521588573,0.057,34112.0,34106.0,4.45815032]
[1625521588672,0.001,34115.0,34106.0,5.01515032]
[1625521588772,0.001,34115.0,34107.0,0.00347435]
[1625521588875,0.06,34115.0,34107.0,0.39893435]
[1625521588975,0.06,34115.0,34108.0,0.057]
[1625521589072,0.06,34115.0,34108.0,0.116]
[1625521589374,0.06,34115.0,34109.0,0.0034742]
[1625521589473,0.06,34115.0,34109.0,0.0624742]
[1625521589926,0.06,34115.0,34110.0,0.00347423]
[1625521590025,0.001,34115.0,34110.0,0.06247423]
[1625521590426,0.001,34115.0,34111.0,0.00347423]
[1625521590525,0.001,34115.0,34111.0,0.06247423]
[1625521590627,0.001,34115.0,34114.0,0.72172632]
[1625521590727,0.001,34115.0,34114.0,1.01498632]
[1625521590926,0.001,34115.0,34114.0,1.01846057]
[1625521591979,0.001,34115.0,34114.0,1.01498632]
[1625521592778,0.001,34115.0,34114.0,1.01846059]
[1625521593030,0.001,34115.0,34114.0,1.01498632]
[1625521595838,0.001,34115.0,34114.0,1.51498632]
[1625521597091,0.001,34115.0,34114.0,1.01498632]
[1625521597192,0.001,34115.0,34114.0,0.72172632]
[1625521601451,0.32064,34115.0,34114.0,0.72172632]
[1625521602750,0.43864,34115.0,34114.0,0.72172632]
[1625521603202,0.45461497,34115.0,34114.0,0.72172632]
[1625521603302,1.14198175,34115.0,34114.0,0.72172632]
[1625521603903,3.37770867,34115.0,34114.0,0.72172632]
[1625521604955,4.75369435,34115.0,34114.0,0.72172632]
[1625521605403,4.75369435,34115.0,34114.0,0.24057544]
[1625521605504,4.75369435,34115.0,34100.0,0.33586313]
[1625521605755,0.01597626,34114.0,34100.0,0.33586313]
[1625521605855,0.07497626,34114.0,34101.0,0.057]
[1625521605957,0.13397626,34114.0,34101.0,0.057]
[1625521606255,0.68870567,34109.0,34101.0,0.057]
[1625521606356,0.5979489,34108.0,34101.0,0.057]
[1625521606457,0.6569489,34108.0,34101.0,0.057]
[1625521606756,0.6569489,34108.0,34102.0,0.24057544]
[1625521606757,0.48115088,34107.0,34102.0,0.24057544]
[1625521606856,0.54015088,34107.0,34102.0,0.29757544]
[1625521607059,0.90061277,34107.0,34102.0,0.29757544]
[1625521607182,0.95961277,34107.0,34102.0,0.24057544]
[1625521607307,0.95961277,34107.0,34106.0,0.24057544]
[1625521607708,1.30477466,34107.0,34106.0,0.24057544]
[1625521607810,2.33915982,34107.0,34106.0,0.24057544]
[1625521608308,3.54592135,34107.0,34106.0,0.24057544]
[1625521608659,3.48692135,34107.0,34106.0,0.24057544]
[1625521609059,3.54592135,34107.0,34106.0,0.24057544]
[1625521610413,4.92740468,34107.0,34106.0,0.24057544]
[1625521612215,4.86840468,34107.0,34106.0,0.24057544]
[1625521612766,4.92740468,34107.0,34106.0,0.24057544]
[1625521612866,4.80940468,34107.0,34106.0,0.24057544]
[1625521613067,4.80940468,34107.0,34106.0,0.55179544]
[1625521614820,3.42792135,34107.0,34106.0,0.55179544]
[1625521615170,3.42792135,34107.0,34106.0,5.09669544]
[1625521616174,3.41194514,34107.0,34106.0,5.09669544]
[1625521616727,2.20518361,34107.0,34106.0,5.09669544]
[1625521617128,2.20518361,34107.0,34106.0,5.15569544]
[1625521617229,2.20518361,34107.0,34106.0,5.09669544]
[1625521618931,2.26418361,34107.0,34106.0,5.09669544]
[1625521619332,2.26418361,34107.0,34106.0,5.15569544]
[1625521619432,3.47438539,34107.0,34106.0,5.15569544]
[1625521619533,3.47438539,34107.0,34106.0,5.09669544]
[1625521619887,3.41538539,34107.0,34106.0,5.09669544]
[1625521619985,3.41538539,34107.0,34106.0,5.15569544]
[1625521620136,2.20518361,34107.0,34106.0,5.49307751]
[1625521620687,2.20518361,34107.0,34106.0,5.15569544]
[1625521621438,2.20518361,34107.0,34106.0,5.49307801]
[1625521621538,2.20518361,34107.0,34106.0,5.43407801]
[1625521621640,2.20518361,34107.0,34106.0,5.49307801]
[1625521621838,2.20518361,34107.0,34106.0,5.09669544]
[1625521622190,2.20518361,34107.0,34106.0,5.15569544]
[1625521622290,2.20518361,34107.0,34106.0,5.09669544]
[1625521622394,2.20518361,34107.0,34106.0,5.15569544]
[1625521622491,2.20518361,34107.0,34106.0,5.49312595]
[1625521622691,2.20518361,34107.0,34106.0,5.43412595]
[1625521622845,2.20518361,34107.0,34106.0,5.09669544]
[1625521623091,2.20518361,34107.0,34106.0,5.15569544]
[1625521623191,2.20518361,34107.0,34106.0,5.09669544]
[1625521623291,2.20518361,34107.0,34106.0,5.4341161]
[1625521623692,2.26418361,34107.0,34106.0,5.4341161]
[1625521624046,3.47475457,34107.0,34106.0,5.09669544]
[1625521624595,3.41575457,34107.0,34106.0,5.09669544]
[1625521624695,3.53375457,34107.0,34106.0,5.09669544]
[1625521624795,3.47475457,34107.0,34106.0,5.09669544]
[1625521624899,3.53375457,34107.0,34106.0,5.09669544]
[1625521624995,3.47475457,34107.0,34106.0,5.09669544]
[1625521625146,3.69804457,34107.0,34106.0,5.09669544]
[1625521625396,3.75704457,34107.0,34106.0,5.09669544]
[1625521625598,3.77304633,34107.0,34106.0,5.09669544]
[1625521626299,5.15692238,34107.0,34106.0,5.09669544]
[1625521626851,5.15692238,34107.0,34106.0,4.85612]
[1625521628204,5.03892238,34107.0,34106.0,4.85612]
[1625521628707,3.65504633,34107.0,34106.0,4.85612]
[1625521628806,3.43175633,34107.0,34106.0,5.09669544]
[1625521629007,3.41575457,34107.0,34106.0,5.15569544]
[1625521629310,2.20518361,34107.0,34106.0,5.83115079]
[1625521629577,0.25838361,34107.0,34106.0,5.83115079]
[1625521629762,0.25838361,34107.0,34106.0,5.89362478]
[1625521629961,0.25838361,34107.0,34106.0,6.9066003]
[1625521630463,0.25838361,34107.0,34106.0,7.4066003]
[1625521630818,0.25838361,34107.0,34106.0,7.64717574]
[1625521630966,0.34613646,34114.0,34106.0,11.68871225]
[1625521631266,0.34613646,34114.0,34107.0,0.00347354]
[1625521631367,0.34613646,34114.0,34107.0,0.06247354]
[1625521631466,0.34613646,34114.0,34107.0,0.12147354]
[1625521631566,0.34613646,34114.0,34108.0,0.5]
[1625521631665,0.34613646,34114.0,34108.0,0.618]
[1625521631867,0.34705865,34115.0,34113.0,2.52443064]
[1625521631967,0.34705865,34115.0,34113.0,2.76834064]
[1625521632068,0.34705865,34115.0,34113.0,2.82734064]
[1625521632517,0.001,34115.0,34114.0,2.52566351]
[1625521632619,0.001,34115.0,34114.0,2.58466351]
[1625521632816,0.001,34115.0,34114.0,2.82523895]
[1625521632918,0.001,34115.0,34114.0,1.95936929]
[1625521633673,0.001,34115.0,34114.0,1.96284257]
[1625521633971,0.001,34115.0,34114.0,1.95936929]
[1625521634322,0.001,34115.0,34114.0,3.30685142]
[1625521639086,0.001,34115.0,34114.0,1.95936929]
[1625521639487,0.001,34115.0,34114.0,3.30618447]
[1625521639837,0.001,34115.0,34114.0,3.89338447]
[1625521639937,0.001,34115.0,34114.0,4.08870447]
[1625521640045,0.001,34115.0,34114.0,2.74188929]
[1625521640399,0.001,34115.0,34114.0,4.08700588]
[1625521640496,0.001,34115.0,34114.0,5.60026205]
[1625521641499,0.001,34115.0,34114.0,5.60373474]
[1625521641951,0.001,34115.0,34114.0,5.60026205]
[1625521643053,0.001,34115.0,34114.0,5.6037348]
[1625521643655,0.001,34115.0,34114.0,6.10875649]
[1625521643805,0.001,34115.0,34114.0,6.10528374]
[1625521644858,0.001,34115.0,34114.0,6.10875644]
[1625521645760,0.24057544,34126.0,34114.0,6.10875644]
[1625521645861,0.58571746,34126.0,34115.0,0.057]
[1625521645960,0.58571746,34126.0,34115.0,0.116]
[1625521646060,0.58571746,34126.0,34115.0,0.175]
[1625521646260,0.34514202,34126.0,34115.0,0.175]
[1625521646361,0.86276905,34126.0,34124.0,0.33662086]
[1625521646562,0.86276905,34126.0,34124.0,0.39562086]
[1625521646914,0.34514202,34126.0,34124.0,0.059]
[1625521647012,0.34514202,34126.0,34125.0,0.72172632]
[1625521647112,0.34514202,34126.0,34125.0,0.78072632]
[1625521648071,0.86247354,34127.0,34125.0,0.78072632]
[1625521648520,0.34502199,34127.0,34125.0,0.78072632]
[1625521648971,0.34502199,34127.0,34126.0,0.24057544]
[1625521649072,0.34502199,34127.0,34126.0,0.29957544]
[1625521649871,0.51729528,34127.0,34126.0,0.29957544]
[1625521650221,0.86216915,34127.0,34126.0,0.29957544]
[1625521650845,0.86216915,34127.0,34126.0,0.24057544]
[1625521650937,0.92116915,34127.0,34126.0,0.24057544]
[1625521651033,1.22074459,34127.0,34126.0,0.24057544]
[1625521651272,2.08236595,34127.0,34126.0,0.24057544]
[1625521651474,2.02336595,34127.0,34126.0,0.24057544]
[1625521651673,2.08236595,34127.0,34126.0,0.24057544]
[1625521651838,3.46124578,34127.0,34126.0,0.24057544]
[1625521652576,2.08236595,34127.0,34126.0,0.24057544]
[1625521653777,2.02336595,34127.0,34126.0,0.24057544]
[1625521654181,2.08236595,34127.0,34126.0,0.24057544]
[1625521655482,3.46095566,34127.0,34126.0,0.24057544]
[1625521655581,3.47691108,34127.0,34126.0,0.24057544]
[1625521655932,3.41791108,34127.0,34126.0,0.24057544]
[1625521658091,3.47691108,34127.0,34126.0,0.24057544]
[1625521658544,3.47691108,34127.0,34118.0,0.24057544]
[1625521659043,0.24057544,34119.0,34118.0,0.24057544]
[1625521659144,1.08244622,34119.0,34118.0,0.24057544]
[1625521659244,1.09839257,34119.0,34118.0,0.24057544]
[1625521659796,1.15739257,34119.0,34118.0,0.24057544]
[1625521660098,2.19138244,34119.0,34118.0,0.24057544]
[1625521660249,2.13238244,34119.0,34118.0,0.24057544]
[1625521660397,2.19138244,34119.0,34118.0,0.24057544]
[1625521660646,1.15739257,34119.0,34118.0,0.24057544]
[1625521662567,0.77359257,34119.0,34118.0,0.24057544]
[1625521662855,0.25652179,34119.0,34118.0,0.29957544]
[1625521662964,0.24057544,34119.0,34118.0,0.24404855]
[1625521663209,0.24057544,34119.0,34118.0,0.24057544]
[1625521663405,0.24057544,34119.0,34118.0,0.29957544]
[1625521663554,0.86175376,34122.0,34118.0,0.29957544]
[1625521663654,0.3447367,34121.0,34118.0,0.29957544]
[1625521663754,0.3447367,34121.0,34118.0,0.30304852]
[1625521664008,0.3447367,34121.0,34118.0,0.29957544]
[1625521664207,0.86174983,34122.0,34118.0,0.29957544]
[1625521664556,0.01594485,34121.0,34118.0,0.29957544]
[1625521665007,0.01594485,34121.0,34120.0,0.24057544]
[1625521665113,0.86174983,34122.0,34120.0,0.24057544]
[1625521665308,0.34474049,34121.0,34120.0,0.29957544]
[1625521665861,1.27443876,34124.0,34120.0,0.29957544]
[1625521665862,0.34473071,34123.0,34120.0,0.29957544]
[1625521666514,0.34473071,34123.0,34121.0,0.00347285]
[1625521666611,0.34473071,34123.0,34121.0,0.06247285]
[1625521666713,0.24057544,34124.0,34122.0,0.33700544]
[1625521666813,0.24057544,34124.0,34122.0,0.39600544]
[1625521667012,0.24057544,34124.0,34123.0,0.00347264]
[1625521667113,0.24057544,34124.0,34123.0,0.06247264]
[1625521667215,0.24057544,34124.0,34123.0,0.35716264]
[1625521668417,0.24057544,34124.0,34123.0,0.69425488]
[1625521669519,0.5852962,34127.0,34123.0,0.69425488]
[1625521669919,0.5852962,34127.0,34124.0,0.00347245]
[1625521670023,0.5852962,34127.0,34124.0,0.06247245]
[1625521670121,0.24057544,34127.0,34124.0,0.90492193]
[1625521670472,0.24057544,34127.0,34125.0,0.00347234]
[1625521670570,0.24057544,34127.0,34125.0,0.06247234]
[1625521670671,0.24057544,34127.0,34125.0,0.39935095]
[1625521670971,0.24057544,34127.0,34125.0,0.39587861]
[1625521671073,0.24057544,34127.0,34126.0,0.24057544]
[1625521671173,0.24057544,34127.0,34126.0,0.29957544]
[1625521671474,1.28428828,34129.0,34126.0,0.29957544]
[1625521671574,1.34328828,34129.0,34126.0,0.29957544]
[1625521671778,1.34328828,34129.0,34128.0,4.4386]
[1625521671875,1.34328828,34129.0,34128.0,4.4976]
[1625521673026,1.34328828,34129.0,34128.0,4.73817544]
[1625521673527,0.9985,34129.0,34128.0,4.73817544]
[1625521674083,1.34335213,34129.0,34128.0,4.73817544]
[1625521674582,0.9985,34129.0,34128.0,4.73817544]
[1625521675180,0.9985,34129.0,34128.0,4.67917544]
[1625521675832,1.86068899,34129.0,34128.0,4.67917544]
[1625521676130,1.51577892,34129.0,34128.0,4.67917544]
[1625521677533,1.51577892,34129.0,34128.0,0.24057544]
[1625521677833,1.53173167,34129.0,34128.0,0.24057544]
[1625521677933,1.87077167,34129.0,34128.0,0.24057544]
[1625521678333,1.85481892,34129.0,34128.0,0.24057544]
[1625521678886,1.85481892,34129.0,34128.0,0.29957544]
[1625521679138,2.09539436,34129.0,34128.0,0.29957544]
[1625521679238,1.57811544,34129.0,34128.0,0.6368344]
[1625521679338,1.23907544,34129.0,34128.0,0.6368344]
[1625521679790,1.23907544,34129.0,34128.0,1.14254517]
[1625521679892,1.23907544,34129.0,34128.0,0.80528621]
[1625521681092,0.9985,34129.0,34128.0,0.80528621]
[1625521681895,0.9985,34129.0,34128.0,1.81641253]
[1625521682544,0.9985,34129.0,34128.0,1.81988475]
[1625521683096,0.9985,34129.0,34128.0,1.81641253]
[1625521686651,0.9985,34129.0,34128.0,2.9968803]
[1625521687052,0.9395,34129.0,34128.0,2.9968803]
[1625521687553,0.9395,34129.0,34128.0,3.00035247]
[1625521687753,0.9395,34129.0,34128.0,4.34800499]
[1625521689963,0.9395,34129.0,34128.0,5.02229928]
[1625521690715,0.86419965,34134.0,34128.0,5.02229928]
[1625521691017,0.34566906,34135.0,34128.0,6.53878638]
[1625521691114,0.34566906,34135.0,34134.0,0.48115088]
[1625521691214,0.34566906,34135.0,34134.0,0.79476088]
[1625521691916,0.34551177,34137.0,34134.0,4.16178955]
[1625521692520,0.51818131,34138.0,34134.0,4.16178955]
[1625521692521,0.34551113,34138.0,34136.0,2.18799666]
[1625521692716,0.40451113,34138.0,34136.0,2.24699666]
[1625521692967,0.059,34138.0,34137.0,2.18700344]
[1625521693167,0.059,34138.0,34137.0,7.69485432]
[1625521693270,0.059,34138.0,34137.0,7.75385432]
[1625521694421,0.059,34138.0,34137.0,8.93032203]
[1625521694873,0.059,34138.0,34137.0,8.93379359]
[1625521695073,0.58588531,34142.0,34137.0,8.93379359]
[1625521695171,0.58588531,34142.0,34141.0,0.24057544]
[1625521695272,0.58588531,34142.0,34141.0,0.56359544]
[1625521695525,0.58588531,34142.0,34141.0,0.89948918]
[1625521696326,0.24057544,34142.0,34141.0,2.74433651]
[1625521696927,0.24057544,34142.0,34141.0,2.80333651]
[1625521697278,0.34510342,34145.0,34141.0,2.80333651]
[1625521697637,0.24057544,34146.0,34144.0,0.33525401]
[1625521697831,0.24057544,34146.0,34144.0,0.39425401]
[1625521698133,0.58546308,34146.0,34144.0,0.059]
[1625521698782,0.24057544,34146.0,34144.0,0.3942806]
[1625521699233,0.24057544,34146.0,34145.0,0.24057544]
[1625521699436,0.24057544,34146.0,34145.0,0.29957544]
[1625521699886,0.24057544,34146.0,34145.0,0.80185074]
[1625521700487,0.24057544,34146.0,34145.0,2.47549116]
[1625521700786,0.24057544,34146.0,34145.0,2.53449116]
[1625521701037,0.51703119,34152.0,34145.0,2.53449116]
[1625521701238,0.51703119,34152.0,34151.0,4.54687544]
[1625521701337,0.51703119,34152.0,34151.0,4.79045544]
[1625521701438,0.51703216,34153.0,34151.0,4.79045544]
[1625521701537,0.51703216,34153.0,34151.0,4.84945544]
[1625521701840,0.17226048,34154.0,34151.0,4.84945544]
[1625521702140,0.75718224,34155.0,34151.0,4.84945544]
[1625521702540,0.24057544,34155.0,34151.0,4.84945544]
[1625521702639,0.24057544,34155.0,34151.0,5.01639589]
[1625521703094,0.24057544,34155.0,34151.0,5.85021545]
[1625521703203,0.24057544,34155.0,34153.0,0.24057544]
[1625521703295,0.24057544,34155.0,34153.0,0.29957544]
[1625521705045,0.17208105,34159.0,34153.0,0.79957544]
[1625521705250,0.059,34159.0,34158.0,0.48115088]
[1625521705357,0.059,34159.0,34158.0,0.76675088]
[1625521705654,2.136e-05,34160.0,34158.0,1.26675088]
[1625521705749,0.51559214,34162.0,34158.0,1.26675088]
[1625521705854,0.51559214,34162.0,34158.0,1.32575088]
[1625521706150,1.44530076,34164.0,34158.0,1.32575088]
[1625521706246,0.57440076,34164.0,34158.0,1.32575088]
[1625521706550,0.059,34164.0,34158.0,1.32575088]
[1625521707251,0.059,34164.0,34163.0,0.48115088]
[1625521707352,0.0001,34166.0,34163.0,0.54015088]
[1625521707460,1.03044032,34169.0,34163.0,1.04015088]
[1625521707569,0.51477355,34169.0,34163.0,1.04015088]
[1625521707656,0.51477355,34169.0,34163.0,1.09915088]
[1625521707756,7.355e-05,34169.0,34163.0,1.09915088]
[1625521707952,7.355e-05,34169.0,34168.0,4.2982]
[1625521708055,7.355e-05,34169.0,34168.0,4.3572]
[1625521708156,7.355e-05,34169.0,34168.0,4.70185]
[1625521708257,0.68618842,34176.0,34168.0,4.70185]
[1625521708555,0.68618842,34176.0,34169.0,0.5]
[1625521708657,0.68618842,34176.0,34169.0,0.559]
[1625521708757,0.68606057,34177.0,34169.0,0.618]
[1625521708955,0.74506057,34177.0,34169.0,0.118]
[1625521709258,0.059,34177.0,34176.0,0.72172632]
[1625521709358,1.64154728,34178.0,34176.0,0.98975632]
[1625521709560,0.9555,34178.0,34176.0,0.98975632]
[1625521711312,0.9555,34178.0,34177.0,0.24057544]
[1625521711513,0.9555,34178.0,34177.0,0.29957544]
[1625521711616,0.9555,34178.0,34177.0,0.24057544]
[1625521711816,6.102,34178.0,34177.0,0.24057544]
[1625521712114,6.78639307,34178.0,34177.0,0.24057544]
[1625521712314,6.78639307,34178.0,34176.0,0.72172632]
[1625521712413,7.24422307,34178.0,34169.0,0.057]
[1625521712515,7.24422307,34178.0,34156.0,0.66167767]
[1625521712620,7.24422307,34178.0,34157.0,0.057]
[1625521712715,7.24422307,34178.0,34157.0,0.116]
[1625521712915,7.24422307,34178.0,34157.0,0.057]
[1625521713153,0.2929,34177.0,34155.0,0.66174313]
[1625521713220,1.69764822,34176.0,34155.0,0.66174313]
[1625521713319,1.69764822,34176.0,34156.0,0.24057544]
[1625521713320,0.24057544,34157.0,34156.0,0.24057544]
[1625521713418,0.48074544,34157.0,34156.0,0.24057544]
[1625521713516,0.48074544,34157.0,34153.0,0.24057544]
[1625521713716,0.53974544,34157.0,34153.0,0.24057544]
[1625521713816,0.48074544,34157.0,34153.0,0.29957544]
[1625521713917,0.48074544,34157.0,34153.0,0.24057544]
[1625521714119,0.59874544,34157.0,34153.0,0.24057544]
[1625521714621,0.59874544,34157.0,34149.0,0.24057544]
[1625521715020,0.59874544,34157.0,34142.0,0.66455665]
[1625521715221,0.59874544,34157.0,34142.0,0.72355665]
[1625521715320,0.48115088,34143.0,34142.0,0.96413209]
[1625521715420,0.80355088,34143.0,34142.0,0.96413209]
[1625521715523,0.80355088,34143.0,34142.0,0.29957544]
[1625521716724,0.80355088,34143.0,34142.0,0.059]
[1625521716823,0.86255088,34143.0,34139.0,0.66516957]
[1625521716924,0.86255088,34143.0,34138.0,0.66544764]
[1625521717025,0.80355088,34143.0,34138.0,0.66544764]
[1625521717125,0.86255088,34143.0,34138.0,0.72444764]
[1625521717279,0.24057544,34139.0,34138.0,0.72444764]
[1625521717379,0.24057544,34139.0,34138.0,0.059]
[1625521717672,0.92496396,34157.0,34138.0,0.059]
[1625521717770,0.29080338,34156.0,34138.0,0.2055]
[1625521717837,0.29080338,34156.0,34139.0,0.589]
[1625521717974,0.29080338,34156.0,34139.0,0.705]
[1625521718027,0.29080338,34156.0,34139.0,0.70847022]
[1625521718128,0.29080338,34156.0,34139.0,1.14545222]
[1625521718228,0.55432286,34157.0,34146.0,1.12002]
[1625521718329,1.54059365,34164.0,34156.0,5.02298]
[1625521718428,1.54059365,34164.0,34156.0,5.08198]
[1625521718630,1.01046107,34159.0,34156.0,5.08198]
[1625521718800,1.02689624,34171.0,34156.0,5.08198]
[1625521718878,1.02689624,34171.0,34157.0,0.057]
[1625521719005,1.02689624,34171.0,34157.0,0.116]
[1625521719183,0.9024,34173.0,34157.0,0.116]
[1625521719387,0.9024,34173.0,34172.0,0.96230176]
[1625521719478,0.9024,34173.0,34172.0,1.24581176]
[1625521719587,0.9024,34173.0,34172.0,1.30481176]
[1625521721231,0.9024,34173.0,34172.0,1.36381176]
[1625521721331,0.9024,34173.0,34172.0,1.08030176]
[1625521721743,0.9024,34173.0,34172.0,0.96230176]
[1625521721936,0.9024,34173.0,34159.0,0.057]
[1625521722031,1.17387,34173.0,34159.0,0.057]
[1625521722133,1.23287,34173.0,34152.0,1.32228323]
[1625521722231,1.23287,34173.0,34153.0,0.057]
[1625521722332,1.23287,34173.0,34153.0,0.116]
[1625521722486,1.23287,34173.0,34153.0,0.175]
[1625521723387,0.24057544,34161.0,34160.0,0.24057544]
[1625521723485,0.54272544,34161.0,34160.0,0.24057544]
[1625521723587,0.54272544,34161.0,34154.0,0.24057544]
[1625521723691,0.60172544,34161.0,34154.0,0.24057544]
[1625521723785,0.66072544,34161.0,34154.0,0.24057544]
[1625521723884,0.60172544,34161.0,34154.0,0.24057544]
[1625521723985,0.66072544,34161.0,34154.0,0.24057544]
[1625521724084,0.60172544,34161.0,34154.0,0.24057544]
[1625521724185,0.66072544,34161.0,34154.0,0.24057544]
[1625521724435,0.60172544,34161.0,34154.0,0.24057544]
[1625521724535,0.66072544,34161.0,34154.0,0.24057544]
[1625521725037,0.60172544,34161.0,34154.0,0.24057544]
[1625521725337,0.24057544,34155.0,34154.0,0.29957544]
[1625521725836,0.29957544,34155.0,34154.0,0.29957544]
[1625521725939,0.29957544,34155.0,34154.0,0.24057544]
[1625521727089,0.29957544,34155.0,34154.0,0.29957544]
[1625521727189,0.29957544,34155.0,34154.0,0.24057544]
[1625521727592,0.29957544,34155.0,34154.0,0.29957544]
[1625521727942,0.29957544,34155.0,34154.0,0.24057544]
[1625521730549,0.29957544,34155.0,34150.0,0.29757544]
[1625521730648,0.29957544,34155.0,34141.0,1.32974735]
[1625521730751,0.29957544,34155.0,34147.0,0.08317267]
[1625521730752,0.057,34154.0,34147.0,0.08317267]
[1625521730852,0.43226,34154.0,34147.0,0.08317267]
[1625521730950,0.49126,34154.0,34147.0,0.08317267]
[1625521731251,0.49126,34154.0,34142.0,0.08331237]
[1625521731351,0.72172632,34143.0,34142.0,0.08331237]
[1625521731451,0.77872632,34143.0,34142.0,0.08331237]
[1625521731551,1.02684632,34143.0,34142.0,0.08331237]
[1625521731751,1.02684632,34143.0,34141.0,0.08335299]
[1625521732615,1.08584632,34143.0,34141.0,0.08335299]
[1625521732705,1.02684632,34143.0,34141.0,0.08335299]
[1625521732805,1.08584632,34143.0,34140.0,0.08341007]
[1625521733104,1.02684632,34143.0,34140.0,0.08341007]
[1625521733359,1.02684632,34143.0,34138.0,0.08346568]
[1625521733456,1.02684632,34143.0,34138.0,0.14246568]
[1625521733908,1.02684632,34143.0,34139.0,0.08347035]
[1625521734008,1.02684632,34143.0,34139.0,0.14247035]
[1625521734565,1.02684632,34143.0,34140.0,0.08349732]
[1625521734665,1.02684632,34143.0,34140.0,0.14249732]
[1625521734866,1.02684632,34143.0,34140.0,0.20149732]
[1625521735516,1.02684632,34143.0,34141.0,0.08348826]
[1625521735616,1.02684632,34143.0,34141.0,0.14248826]
[1625521735766,1.02684632,34143.0,34141.0,0.08348826]
[1625521736171,1.02684632,34143.0,34141.0,0.14248826]
[1625521737022,1.02684632,34143.0,34141.0,0.08348826]
[1625521737925,1.02684632,34143.0,34140.0,0.08362239]
[1625521738376,1.02684632,34143.0,34141.0,0.08362799]
[1625521739130,1.02684632,34143.0,34141.0,0.14262799]
[1625521739632,1.02684632,34143.0,34142.0,0.08365867]
[1625521742683,0.77872632,34143.0,34142.0,0.08365867]
[1625521743544,0.77872632,34143.0,34142.0,0.41948867]
[1625521743888,0.77872632,34143.0,34142.0,0.33583]
[1625521748847,0.77872632,34143.0,34141.0,1.00542952]
[1625521748947,0.77872632,34143.0,34141.0,1.06442952]
[1625521749649,0.77872632,34143.0,34142.0,1.00604205]
[1625521750103,0.77872632,34143.0,34141.0,1.00612747]
[1625521750303,0.77872632,34143.0,34141.0,1.06512747]
[1625521753255,0.72172632,34143.0,34141.0,1.06512747]
[1625521754407,0.057,34142.0,34141.0,1.06512747]
[1625521754862,0.057,34142.0,34141.0,0.059]
[1625521755862,0.057,34142.0,34141.0,0.06247102]
[1625521756912,0.057,34142.0,34141.0,1.07228131]
[1625521757415,0.057,34142.0,34141.0,0.06247102]
[1625521757864,0.057,34142.0,34141.0,1.07245267]
[1625521759871,0.07292173,34142.0,34141.0,1.07245267]
[1625521761776,0.07292173,34142.0,34141.0,0.06247102]
[1625521762079,0.07292173,34142.0,34141.0,1.07434072]
[1625521763027,0.07292173,34142.0,34141.0,0.06247102]
[1625521764181,0.40759173,34142.0,34141.0,0.06247102]
[1625521765331,0.40759173,34142.0,34141.0,0.00347102]
[1625521765832,0.40759173,34142.0,34140.0,0.00347113]
[1625521766133,0.01592238,34141.0,34140.0,0.00347113]
[1625521769591,0.01592238,34141.0,34140.0,1.01642684]
[1625521769992,0.01592238,34141.0,34140.0,1.07542684]
[1625521770092,0.057,34142.0,34140.0,1.33503684]
[1625521770194,0.24057544,34143.0,34140.0,2.51658504]
[1625521770392,0.24057544,34143.0,34141.0,0.00347062]
[1625521770494,0.24057544,34143.0,34142.0,2.1930806]
[1625521770592,0.24057544,34143.0,34142.0,2.2520806]
[1625521770843,0.24057544,34143.0,34142.0,2.25555113]
[1625521770993,0.24057544,34143.0,34142.0,2.19655113]
[1625521771745,0.24057544,34143.0,34142.0,2.43712657]
[1625521773000,0.24057544,34143.0,34142.0,2.49612657]
[1625521773101,0.24057544,34143.0,34142.0,2.43712657]
[1625521774155,0.25649815,34143.0,34142.0,2.43712657]
[1625521777058,0.31349815,34143.0,34142.0,2.43712657]
[1625521779065,0.31349815,34143.0,34142.0,1.93215234]
[1625521779565,0.39996272,34143.0,34142.0,1.93215234]
[1625521780967,0.31349815,34143.0,34142.0,1.93215234]
[1625521781518,0.31349815,34143.0,34142.0,4.47441954]
[1625521781618,0.31349815,34143.0,34142.0,4.70990954]
[1625521783374,1.00570851,34143.0,34142.0,4.70990954]
[1625521784427,0.31349815,34143.0,34142.0,4.70990954]
[1625521784878,1.00573474,34143.0,34142.0,4.70990954]
[1625521785377,1.00573474,34143.0,34142.0,4.47441954]
[1625521785631,2.04443886,34143.0,34142.0,4.47441954]
[1625521786181,1.00573474,34143.0,34142.0,4.47441954]
[1625521787482,2.04525712,34143.0,34142.0,4.47441954]
[1625521788787,3.25801179,34143.0,34142.0,4.47441954]
[1625521792444,3.25801179,34143.0,34142.0,4.53341954]
[1625521792747,2.04525712,34143.0,34142.0,6.0634239]
[1625521793196,2.04525712,34143.0,34142.0,6.0044239]
[1625521795199,3.25899897,34143.0,34142.0,4.47441954]
[1625521798458,3.77926302,34143.0,34142.0,4.98453459]
[1625521799610,2.56552117,34143.0,34142.0,4.98453459]
[1625521800362,2.54959846,34143.0,34142.0,4.98106406]
[1625521800615,2.56552715,34143.0,34142.0,4.98453482]
[1625521800812,3.77926152,34143.0,34142.0,4.98453482]
[1625521801414,2.56552715,34143.0,34142.0,4.98453482]
[1625521801817,2.56552715,34143.0,34142.0,6.5146538]
[1625521802168,2.56552715,34143.0,34142.0,4.98453482]
[1625521805272,2.56552715,34143.0,34142.0,5.04353482]
[1625521805673,2.56552715,34143.0,34142.0,6.57323315]
[1625521806074,2.54959846,34143.0,34142.0,6.56976239]
[1625521806324,2.56552645,34143.0,34142.0,6.57323297]